Cogmind - Beta 13 @@@ ROGUE MODE // 2024.04.22 @ 20:51:36 Player: lucky255 Result: Destroyed by exploding Fusion Modulator Performance ------------- Evolutions (0) 0 Regions Visited (1) 200 Robots Destroyed (4) 20 Value Destroyed (92) 92 Prototype IDs (2) 40 Alien Tech Used (0) 0 Bonus (0) 0 TOTAL SCORE: 352 Bonus ------- None Cogmind --------- Core Integrity 0/250 Matter 222/300 Energy 94/100 System Corruption 0% Temperature Cool (24) Movement Hovering (60) Location -10/Materials Parts ------- > --- POWER (1) -------- (None) > --- PROPULSION (2) --- Improved Hover Unit > --- UTILITY (2) ------ Structural Scanner Visual Processing Unit > --- WEAPON (2) ------- Plasma Cutter > --- INVENTORY (5) ---- Light Nuclear Core Improved Hover Unit Improved Hover Unit Visual Processing Unit Peak State ------------ > --- POWER ------------ Light Ion Engine > --- PROPULSION ------- Improved Hover Unit Improved Hover Unit > --- UTILITY ---------- Structural Scanner Visual Processing Unit > --- WEAPON ----------- Plasma Cutter Plasma Cutter > --- INVENTORY -------- Light Nuclear Core Improved Hover Unit Improved Hover Unit Visual Processing Unit Plasma Cutter [Rating: 13] Favorites ----------- Power Ion Engine Engine Ion Engine Propulsion Light Treads Treads Light Treads Hover Unit Improved Hover Unit Utility Structural Scanner Device Structural Scanner Storage Large Storage Unit Processor Visual Processing Unit Weapon Light Assault Rifle Energy Gun Small Laser Ballistic Gun Light Assault Rifle Special Weapon Plasma Cutter Build | -11 -10 ------- Run | Yrd Mat Slots Evolved . | . . Power . | . . Propulsion . | . . Utility . | . . Weapon . | . . Parts Attached 18 | 6 12 Power 2 | 1 1 Engine 2 | 1 1 Core . | . . Reactor . | . . Propulsion 4 | 2 2 Treads 2 | 2 . Leg . | . . Wheel . | . . Hover 2 | . 2 Flight . | . . Utility 5 | . 5 Device 3 | . 3 Storage 1 | . 1 Processor 1 | . 1 Hackware . | . . Protection . | . . Artifact . | . . Weapon 7 | 3 4 Energy Gun 3 | 2 1 Energy Cannon . | . . Ballistic Gun 1 | 1 . Ballistic Cannon . | . . Launcher . | . . Special Weapon 3 | . 3 Impact Weapon . | . . Slashing Weapon . | . . Piercing Weapon . | . . Special Melee Weapon . | . . Unidentified Prototypes . | . . Parts Lost 4 | . 4 Power 1 | . 1 Propulsion 1 | . 1 Utility . | . . Weapon 2 | . 2 Highest Loss Streak 4 | . 4 To Critical Strikes . | . . Average Slot Usage (%) 92 | . 92 Engine 14 | . 14 Treads 24 | . 24 Hover 3 | . 3 Device 25 | . 25 Energy Gun 6 | . 6 Ballistic Gun 12 | . 12 Special Weapon 2 | . 2 Naked Turns . | . . Heaviest Build 28 | 9 28 Greatest Support 40 | 40 40 Greatest Overweight (x) 1 | . 1 Average Overweight (x) . | . . Largest Inventory Capacity 15 | 5 15 Average Capacity 5 | 5 5 Most Carried 13 | 5 13 Average Carried 3 | 1 3 Final Capacity 5 | 5 5 Final Carried 4 | 1 4 Class Distribution -------------------- 100% | Mutant Dominant Class ---------------- Mutant | -10/Materials Resources | -11 -10 ----------- Run | Yrd Mat Matter Collected 299 | 206 93 Remotely . | . . Salvage Created 138 | . 138 Parts 11 | . 11 Haulers Intercepted . | . . Recyclers Shooed . | . . Parts Field Recycled . | . . Retrieved Matter . | . . Parts Self-Destructed . | . . Prevented . | . . Kills | -11 -10 ------- Run | Yrd Mat Combat Hostiles Destroyed 3 | . 3 Guns 2 | . 2 Cannons 1 | . 1 Classes Destroyed 3 | . 3 Worker 1 | . 1 Swarmer 1 | . 1 Grunt 2 | . 2 Best Kill Streak 2 | . 2 Combat Bots Only 2 | . 2 Max Kills in Single Turn 1 | . 1 Gunslinging . | . . Exploded . | . . Melee . | . . Uniques/NPCs Destroyed . | . . Combat | -11 -10 -------- Run | Yrd Mat Hostile Shots Fired 47 | . 47 Missed 11 | . 11 Damage Taken 555 | . 555 Core 275 | . 275 Absorbed by Shields . | . . Core Remaining (%) 100 | 100 . Volleys Fired 36 | 11 25 Largest 2 | 1 2 Hottest 60 | 20 60 Shots Fired 56 | 11 45 Gun 49 | 11 38 Cannon . | . . Launcher . | . . Special 7 | . 7 Kinetic 32 | 11 21 Thermal 24 | . 24 Explosive . | . . Electromagnetic . | . . Robot Hit Streak 4 | 4 4 Robot Miss Streak 4 | 1 4 Penetration Max . | . . Secondary Targets 1 | . 1 Max Gunslinging Chain 1 | . 1 Shots Hit Robots 23 | 8 15 Core Hits 10 | 1 9 Critical Kills . | . . Critical Parts Destroyed . | . . Critical Strikes . | . . Melee Attacks . | . . Impact . | . . Slashing . | . . Piercing . | . . Sneak Attacks . | . . Combat Hostiles . | . . Follow-up Attacks . | . . Damage Inflicted 281 | 64 217 Guns 207 | 64 143 Cannons . | . . Explosions . | . . Melee . | . . Ramming 19 | . 19 Kinetic 162 | 64 98 Thermal 100 | . 100 Explosive . | . . Electromagnetic . | . . Impact . | . . Slashing . | . . Piercing . | . . Highest Corruption . | . . Average Corruption . | . . Corruption Purged . | . . Corruption Blocked . | . . Overload Shots . | . . Overflow Damage . | . . Projectiles . | . . Explosions . | . . Melee . | . . Knockbacks . | . . Impact . | . . Kinetic . | . . Secondary . | . . Self-Inflicted Damage 9 | . 9 Shots . | . . Rammed 4 | . 4 Targets Rammed 4 | . 4 Kicked . | . . Crushed . | . . Highest Temperature 138 | . 138 Average Temperature 54 | . 54 Received Heat Transfer 99 | . 99 Siege Activations . | . . Robots Corrupted . | . . Combat Hostiles . | . . Parts Fried . | . . Impact Corruptions . | . . Robots Melted . | . . Combat Hostiles . | . . Parts Melted 1 | . 1 Heat Transferred 285 | . 285 Parts Sabotaged . | . . Parts Stolen . | . . Parts Stripped . | . . Power Chain Reactions . | . . Alert | -11 -10 ------- Run | Yrd Mat Peak Influence 110 | . 110 Initial . | . . Average 26 | . 29 Maximum Alert Level . | . . Low Security (%) 100 | 100 100 Level 1 . | . . Level 2 . | . . Level 3 . | . . Level 4 . | . . Level 5 . | . . High Security . | . . Max Security . | . . Squads Dispatched . | . . Investigation . | . . Extermination . | . . Reinforcement . | . . Assault . | . . Garrison . | . . Intercept . | . . Searches Triggered . | . . Construction Impeded . | . . Haulers Reinforced . | . . Active Scanning Responses . | . . Cargo Convoy Interrupts . | . . Stealth | -11 -10 --------- Run | Yrd Mat Distress Signals 2 | . 2 Communications Jammed . | . . Distress Signals . | . . Times Spotted 12 | . 12 Peak Tracking Total 6 | . 6 Tactical Retreats 1 | . 1 Traps | -11 -10 ------- Run | Yrd Mat Traps Triggered . | . . Indirectly . | . . Trap Hack Attempts . | . . Triggered . | . . Disarmed . | . . Reprogrammed . | . . Reused . | . . Traps Extracted . | . . Installed . | . . Triggered . | . . Machines | -11 -10 ---------- Run | Yrd Mat Machines Disabled . | . . Max in Single Turn . | . . Machines Repaired . | . . Machines Dismantled . | . . Machines Sabotaged . | . . Overloaded Fab Kills . | . . Hacking | -11 -10 --------- Run | Yrd Mat Machines Accessed 2 | . 2 Terminals 2 | . 2 Fabricators . | . . Repair Stations . | . . Recycling Units . | . . Scanalyzers . | . . Garrison Access . | . . Total Hacks 7 | . 7 Successful 3 | . 3 Failed 4 | . 4 Catastrophic . | . . Database Lockouts . | . . Manual 3 | . 3 Terminals 7 | . 7 Fabricators . | . . Repair Stations . | . . Recycling Units . | . . Scanalyzers . | . . Garrison Access . | . . Terminal Hacks 3 | . 3 Prototype ID Bank 1 | . 1 Locate Traps 1 | . 1 Zone Layout 1 | . 1 Fabricator Hacks . | . . Repair Station Hacks . | . . Recycling Unit Hacks . | . . Scanalyzer . | . . Garrison Access Hacks . | . . Unauthorized Hacks . | . . Terminals . | . . Fabricators . | . . Repair Stations . | . . Recycling Units . | . . Scanalyzers . | . . Garrison Access . | . . Data Cores Recovered . | . . Used . | . . Hacking Detections 2 | . 2 Full Trace Events . | . . Feedback Events . | . . Feedback Blocked . | . . Robot Schematics Acquired . | . . Robots Built . | . . Authchips . | . . Time . | . . Total Robot Build Rating . | . . Part Schematics Acquired . | . . Parts Built . | . . Authchips . | . . Time . | . . Total Part Build Rating . | . . Parts Repaired . | . . Time . | . . Parts Recycled . | . . Recycled Matter . | . . Retrieved Matter . | . . Retrieved Components . | . . Parts Scanalyzed . | . . Part Schematics Acquired . | . . Parts Damaged . | . . Bothacking | -11 -10 ------------ Run | Yrd Mat Used RIF Installer . | . . Robots Hacked . | . . Non-combat . | . . Combat . | . . Robot Hacks Applied . | . . Relay Couplers Released . | . . Fabnet Peak Effective % . | . . Robots Rewired . | . . Allies Hacked . | . . Hacks Repelled . | . . Allies | -11 -10 -------- Run | Yrd Mat Total Allies . | . . Largest Group . | . . Highest-Rated Group . | . . Highest-Rated Ally . | . . Total Orders . | . . Ally Attacks . | . . Total Damage . | . . Kills . | . . Allies Corrupted . | . . Allies Melted . | . . Intel | -11 -10 ------- Run | Yrd Mat Robot Analysis Total . | . . Derelict Logs Recovered . | . . Drone Launches . | . . Drone Recoveries . | . . Exploration | -11 -10 ------------- Run | Yrd Mat Turns Passed 780 | 82 698 Spaces Moved 298 | 38 260 Core 13 | 13 . Treads 236 | 25 211 Legs . | . . Wheels . | . . Hover 49 | . 49 Flight . | . . Fastest Speed 50 | 50 56 Average Speed 138 | 122 141 Slowest Speed 160 | 160 160 Overloaded Moves . | . . Propulsion Burnouts . | . . Robots Hopped . | . . Cave-ins Triggered . | . . Exploration Rate (%) 16 | 4 28 Regions Visited 1 Branch Regions . Pre-discovered Areas . | . . Known Exits Taken . | . . Unknown Exits Taken 1 | 1 . Scrap Searched . | . . Spaces Dug . | . . Terrain Destroyed . | . . Melee . | . . Projectile . | . . AOE . | . . Terrain Rammed . | . . Walls Destroyed . | . . Machines Disabled . | . . Actions | -11 -10 --------- Run | Yrd Mat Total 612 | 67 545 Wait 211 | . 211 Move 297 | 37 260 Hop . | . . Pick Up 31 | 8 23 Fast Attach . | . . Attach 13 | 6 7 Detach 3 | 2 1 Swap 5 | . 5 Drop 11 | 3 8 Fire 36 | 11 25 Melee . | . . Ram 4 | . 4 Kick . | . . Crush . | . . Escape Stasis . | . . Rewire . | . . Trap . | . . Miscellaneous 1 | . 1 Route ------- -11/Scrapyard -10/Materials (discovered 1 exit: [Mat]) History --------- Turn | Location | Event 9 | -11/Scrapyard | Discovered new exit (range 15) 83 | -11/Scrapyard | Entered Materials 314 | -10/Materials | Build established: Mutant 419 | -10/Materials | Discovered new exit (range 20) 781 | -10/Materials | Destroyed by exploding Fusion Modulator Last Messages --------------- 00730_ Dropped Ion Engine. 00735_ Acquired Plasma Cutter. 00738_ Acquired Imp. Hover Unit. 00740_ Dropped Plasma Cutter. 00740_ Acquired Visual Processing Unit. 00741_ Dropped Terrain Scanner. 00744_ Acquired Visual Processing Unit. 00761_ W-16 Scout sends out distress signal. 00763_ Slammed into S-10 Pest. 00767_ Dismantling Fusion Modulator with Plasma Cutter. 00773_ Plasma Cutter destroyed. 00779_ Flight Unit melted. 00779_ S-10 Pest destroyed. 00781_ Fusion Modulator explodes. 00781_ Plasma Cutter destroyed. 00781_ Lgt. Ion Engine destroyed. 00781_ Imp. Hover Unit destroyed. 00781_ S-10 Pest destroyed. 00781_ Fusion Modulator explodes. Map ----- +----------------------------------------------------+ | | | | | | | | | | | ?????????????????????????????????????????????? | | ?????????????????????????????????????????????? | | ?????????????????????????????????????????????? | | ?????????????????????????????????????????????? | | ?????????????????????????????????????????????? | | ?????????????????????????????????????????????? | | ?????????????????????????????????????????????? | | ?????????????????????????????????????????????? | | ???????????#### "???????????? ??????????? | | ???????????########+#???????????? ??????????? | | ??????????? ?????? ???? ?????????? | | ????????????? ?????? ???? ?????????? | | ??????????????% ##### !?????????? | | ??????????????? #####+##### !?????????? | | ??????????????? # ! # ??????????? | | ??????????????? """ ; # ??????????? | | ??????????R" """ ; # ??????????? | | ??????????"" """ ; # ??????????? | | ???????? ; ; ?????????? | | ???????? ;[ # ##?????????? | | ???????? ; %@ # ##?????????? | | ???????? ; # ########??#? | | ??????????######## ;;;;;;m#### ########???? | | ??????????# # ; ; ## ###*![##???? | | ???????????????? # ## # [ ! ##???? | | ???????????????? + #### u == ##???? | | ???????????????? # ?#### |##???? | | ???????????????? # ????## #### !!##???? | | ???????????????? # ?????### #####+# !##???? | | ???????????????? # ?????### # ######???? | | ???????????????? # ??????## + ######???? | | ????????????????????????### # ##???????? | | ??????????????????????#?### % # ##???????? | | ????????????????????????### # ##???###?? | | ?????????????????? ????#?## # ##???????? | | ???????????????????????#?## # ###?#????? | | ???????? #??## ##############?? | | ???????? #??## #############??? | | ???????? #??## # ##??#? | | ???????? ##?## # ##???? | | ???????? #?### + ##???? | | ???????? ###### # ##???? | | ???????? ## ############???? | | ???????? ## # ###???? | | ???????? ## # ##????? | +----------------------------------------------------+ Best States ------------- Heat Dissipation 25 Energy Generation 10 Energy Capacity 250 Matter Stores 278 Matter Capacity 300 Sight Range 18 Terrain Scan Range 14 Terrain Scan Density 10 Evasion (%) 53 Recoil Reduction 2 Item Schematics ----------------- None Robot Schematics ------------------ None Fabricated ------------ Nothing Alien Tech Used ----------------- None Achievements -------------- None Challenges ------------ None Game ------ Seed CoilArchitectDrive Manual? 0 Play Time 00:15:00 Cumulative 6.3 hours Start 2024.04.22 @ 20:34:20 End 2024.04.22 @ 20:51:36 Sessions 1 Manual Loads 0 Difficulty Rogue Special Mode None Game No. 8 Rogue 8 Adventurer 0 Explorer 0 Win Type - Total 0 Types 0/0/0/0/0/0/0/0/0 Lore% 14 Gallery% 11 Achievement% 11 Wizard Run 0 Options --------- Layout 2 ASCII 0 Keyboard 1 Movement Numpad Keybinds 0 Fullscreen 1 Font 32/SmallcapsGlow Map View 50x44 Zoom Use 0% Tactical HUD 1 Map Filters NONE Filters NONE Steam 1 RUN: ad0d7491-68c5-4098-8a7b-5a89b2e33115